[Event "Late-Titled-Tuesday-Blitz-March-12-2024"]
[Site "Chess.com"]
[Date "2024.03.12"]
[Round "2"]
[White "ukchessbomber"]
[Black "nj123456"]
[Result "1-0"]
[WhiteElo "2651"]
[BlackElo "2421"]
[TimeControl "180+1"]
[EndTime "14:16:52 PDT"]
[Termination "ukchessbomber won by resignation"]

1. a3 {[%clk 0:03:00.4]} 1... Nf6 {[%clk 0:02:55.9]} 2. c4 {[%clk 0:03:00.7]}
2... e6 {[%clk 0:02:48.5]} 3. b3 {[%clk 0:03:01.6]} 3... d5 {[%clk 0:02:49.3]}
4. Bb2 {[%clk 0:03:01.4]} 4... Be7 {[%clk 0:02:49.2]} 5. Nf3 {[%clk 0:03:00.7]}
5... O-O {[%clk 0:02:49.2]} 6. g3 {[%clk 0:03:01.6]} 6... c5 {[%clk 0:02:49.4]}
7. Bg2 {[%clk 0:03:02]} 7... Nc6 {[%clk 0:02:49.8]} 8. O-O {[%clk 0:03:02.3]}
8... b6 {[%clk 0:02:50.2]} 9. cxd5 {[%clk 0:03:02.2]} 9... Nxd5 {[%clk
0:02:47.1]} 10. d4 {[%clk 0:03:03.1]} 10... Bb7 {[%clk 0:02:46.8]} 11. Qd2
{[%clk 0:03:01.8]} 11... Nf6 {[%clk 0:02:43.7]} 12. dxc5 {[%clk 0:03:01.5]}
12... Bxc5 {[%clk 0:02:42.4]} 13. Nc3 {[%clk 0:02:57.6]} 13... Qxd2 {[%clk
0:02:34.2]} 14. Nxd2 {[%clk 0:02:57.2]} 14... Rfd8 {[%clk 0:02:35.1]} 15. Nc4
{[%clk 0:02:57]} 15... Rac8 {[%clk 0:02:29]} 16. Rfd1 {[%clk 0:02:55.3]} 16...
Be7 {[%clk 0:02:19.1]} 17. Nb5 {[%clk 0:02:54.9]} 17... Rxd1+ {[%clk 0:02:04.2]}
18. Rxd1 {[%clk 0:02:55.8]} 18... a6 {[%clk 0:02:04.2]} 19. Nxb6 {[%clk
0:01:08.7]} 19... Rd8 {[%clk 0:01:39.5]} 20. Rxd8+ {[%clk 0:01:02.9]} 20... Bxd8
{[%clk 0:01:40.4]} 21. Nd6 {[%clk 0:00:53.8]} 21... Bxb6 {[%clk 0:01:34.9]} 22.
Nxb7 {[%clk 0:00:53.5]} 22... Nd4 {[%clk 0:01:31.5]} 23. Bxd4 {[%clk 0:00:46.1]}
23... Bxd4 {[%clk 0:01:32.4]} 24. e3 {[%clk 0:00:46.5]} 24... Bb6 {[%clk
0:01:29.4]} 25. b4 {[%clk 0:00:46.5]} 25... Kf8 {[%clk 0:01:28.3]} 26. Bf1
{[%clk 0:00:46.2]} 26... Ke7 {[%clk 0:01:21.7]} 27. Bxa6 {[%clk 0:00:45.9]}
27... Kd7 {[%clk 0:01:22.1]} 28. a4 {[%clk 0:00:39.2]} 28... Ne4 {[%clk
0:01:09.1]} 29. a5 {[%clk 0:00:33.7]} 29... Bc7 {[%clk 0:01:08.4]} 30. b5 {[%clk
0:00:31.5]} 30... Nd6 {[%clk 0:00:59.1]} 31. Nc5+ {[%clk 0:00:24.5]} 31... Ke7
{[%clk 0:00:58.7]} 32. b6 {[%clk 0:00:25.1]} 32... Bb8 {[%clk 0:00:59]} 33. Bd3
{[%clk 0:00:19.7]} 33... Nc8 {[%clk 0:00:54.2]} 34. Bxh7 {[%clk 0:00:18.7]}
34... g6 {[%clk 0:00:52.5]} 35. h4 {[%clk 0:00:18.4]} 35... Kf6 {[%clk
0:00:52.4]} 36. h5 {[%clk 0:00:18.6]} 36... Kg7 {[%clk 0:00:52.6]} 37. hxg6
{[%clk 0:00:19.1]} 37... fxg6 {[%clk 0:00:53.4]} 38. Nxe6+ {[%clk 0:00:14.4]}
38... Kxh7 {[%clk 0:00:53.5]} 39. Nd8 {[%clk 0:00:14.9]} 39... Ne7 {[%clk
0:00:45.6]} 40. a6 {[%clk 0:00:13.7]} 40... Nc8 {[%clk 0:00:46.1]} 41. b7 {[%clk
0:00:09.9]} 41... Nd6 {[%clk 0:00:43.3]} 42. Nc6 {[%clk 0:00:10]} 42... Bc7
{[%clk 0:00:41]} 43. a7 {[%clk 0:00:08.9]} 43... Nxb7 {[%clk 0:00:39.6]} 44.
a8=Q {[%clk 0:00:09.8]} 1-0

[Event "Late-Titled-Tuesday-Blitz-March-12-2024"]
[Site "Chess.com"]
[Date "2024.03.12"]
[Round "2"]
[White "Nick12772"]
[Black "DeArron_Fox"]
[Result "1-0"]
[WhiteElo "2365"]
[BlackElo "2545"]
[TimeControl "180+1"]
[EndTime "14:16:52 PDT"]
[Termination "Nick12772 won on time"]

1. Nf3 {[%clk 0:03:00.9]} 1... d5 {[%clk 0:02:56]} 2. g3 {[%clk 0:03:00.8]} 2...
Nf6 {[%clk 0:02:51]} 3. Bg2 {[%clk 0:03:01.1]} 3... e6 {[%clk 0:02:51.7]} 4. O-O
{[%clk 0:03:01.7]} 4... Be7 {[%clk 0:02:52.4]} 5. d4 {[%clk 0:03:02.3]} 5... O-O
{[%clk 0:02:52.3]} 6. Bf4 {[%clk 0:03:02.3]} 6... b6 {[%clk 0:02:49.7]} 7. c4
{[%clk 0:03:01.8]} 7... Bb7 {[%clk 0:02:50]} 8. cxd5 {[%clk 0:03:02.5]} 8...
Nxd5 {[%clk 0:02:50.1]} 9. Bd2 {[%clk 0:03:02.1]} 9... Nd7 {[%clk 0:02:47.6]}
10. Nc3 {[%clk 0:03:02.2]} 10... c5 {[%clk 0:02:45.1]} 11. Nxd5 {[%clk
0:02:58.2]} 11... Bxd5 {[%clk 0:02:46]} 12. Bc3 {[%clk 0:02:52.8]} 12... Bf6
{[%clk 0:02:43.2]} 13. Rc1 {[%clk 0:02:46.9]} 13... Rc8 {[%clk 0:02:41.5]} 14.
b3 {[%clk 0:02:35.6]} 14... cxd4 {[%clk 0:02:32.5]} 15. Bxd4 {[%clk 0:02:31.2]}
15... Rxc1 {[%clk 0:02:33.4]} 16. Qxc1 {[%clk 0:02:30]} 16... Bxd4 {[%clk
0:02:22.7]} 17. Nxd4 {[%clk 0:02:28.8]} 17... Bxg2 {[%clk 0:02:23.6]} 18. Kxg2
{[%clk 0:02:29.4]} 18... Nc5 {[%clk 0:02:21.9]} 19. Nf3 {[%clk 0:02:23.1]} 19...
Qa8 {[%clk 0:02:12.3]} 20. Rd1 {[%clk 0:02:21]} 20... h6 {[%clk 0:02:11]} 21. b4
{[%clk 0:02:15.5]} 21... Ne4 {[%clk 0:02:10.8]} 22. Qf4 {[%clk 0:02:00.1]} 22...
Nc3 {[%clk 0:01:56.7]} 23. Rd2 {[%clk 0:01:56.9]} 23... Rd8 {[%clk 0:01:49.6]}
24. a3 {[%clk 0:01:42]} 24... Rxd2 {[%clk 0:01:39.6]} 25. Qxd2 {[%clk
0:01:42.9]} 25... Nd5 {[%clk 0:01:32.3]} 26. Qc2 {[%clk 0:01:33.2]} 26... a5
{[%clk 0:00:53]} 27. b5 {[%clk 0:01:26.8]} 27... a4 {[%clk 0:00:38.7]} 28. h4
{[%clk 0:01:25.5]} 28... Qa5 {[%clk 0:00:35.8]} 29. Qc6 {[%clk 0:01:15.2]} 29...
g6 {[%clk 0:00:17.8]} 30. Ne5 {[%clk 0:01:09.6]} 30... Qa7 {[%clk 0:00:16.8]}
31. e4 {[%clk 0:00:46.5]} 31... Nf6 {[%clk 0:00:07.2]} 32. Nc4 {[%clk 0:00:39]}
32... Qd7 {[%clk 0:00:02.5]} 33. Nxb6 {[%clk 0:00:21.4]} 33... Qxc6 {[%clk
0:00:01.9]} 34. bxc6 {[%clk 0:00:22.3]} 1-0

[Event "Late-Titled-Tuesday-Blitz-March-12-2024"]
[Site "Chess.com"]
[Date "2024.03.12"]
[Round "2"]
[White "Synctel"]
[Black "the_blue_pill"]
[Result "0-1"]
[WhiteElo "1874"]
[BlackElo "2451"]
[TimeControl "180+1"]
[EndTime "14:16:54 PDT"]
[Termination "the_blue_pill won on time"]

1. d4 {[%clk 0:03:00.9]} 1... d5 {[%clk 0:02:59.2]} 2. Nf3 {[%clk 0:02:59.5]}
2... e6 {[%clk 0:02:57.5]} 3. e3 {[%clk 0:02:58.1]} 3... Nf6 {[%clk 0:02:55.6]}
4. Bd3 {[%clk 0:02:57.5]} 4... b6 {[%clk 0:02:56.2]} 5. Qe2 {[%clk 0:02:55.9]}
5... Bb7 {[%clk 0:02:55.8]} 6. Nbd2 {[%clk 0:02:53.8]} 6... Ne4 {[%clk
0:02:55.5]} 7. O-O {[%clk 0:02:51.6]} 7... Bd6 {[%clk 0:02:51.8]} 8. Ne5 {[%clk
0:02:37.3]} 8... O-O {[%clk 0:02:42.1]} 9. f4 {[%clk 0:02:33.1]} 9... f6 {[%clk
0:02:30.4]} 10. Nef3 {[%clk 0:02:10.1]} 10... Nd7 {[%clk 0:02:25.9]} 11. b3
{[%clk 0:01:59.7]} 11... a5 {[%clk 0:02:04.4]} 12. a4 {[%clk 0:01:54]} 12... Qe7
{[%clk 0:01:36.8]} 13. Bb2 {[%clk 0:01:52.5]} 13... Rae8 {[%clk 0:01:33.5]} 14.
Rac1 {[%clk 0:00:58.7]} 14... Nxd2 {[%clk 0:01:16.4]} 15. Qxd2 {[%clk
0:00:54.1]} 15... e5 {[%clk 0:01:16.9]} 16. Bf5 {[%clk 0:00:36]} 16... e4 {[%clk
0:01:07.4]} 17. Ne1 {[%clk 0:00:31.7]} 17... g6 {[%clk 0:00:59.5]} 18. Bh3
{[%clk 0:00:31.6]} 18... f5 {[%clk 0:00:51.5]} 19. c4 {[%clk 0:00:31.2]} 19...
Ba6 {[%clk 0:00:46.5]} 20. Rf2 {[%clk 0:00:21.8]} 20... c6 {[%clk 0:00:39]} 21.
Nc2 {[%clk 0:00:19.5]} 21... dxc4 {[%clk 0:00:35.1]} 22. bxc4 {[%clk 0:00:19.1]}
22... Bxc4 {[%clk 0:00:34.9]} 23. g3 {[%clk 0:00:15.7]} 23... Bd5 {[%clk
0:00:30.8]} 24. Ne1 {[%clk 0:00:14.1]} 24... Nf6 {[%clk 0:00:28.4]} 25. Bf1
{[%clk 0:00:14.4]} 25... Ng4 {[%clk 0:00:25.8]} 26. Rg2 {[%clk 0:00:14.9]} 26...
Bb4 {[%clk 0:00:26.3]} 27. Qc2 {[%clk 0:00:14.4]} 27... Nxe3 {[%clk 0:00:23.5]}
28. Qf2 {[%clk 0:00:11.2]} 28... Nxg2 {[%clk 0:00:22.6]} 29. Nxg2 {[%clk
0:00:11.5]} 29... e3 {[%clk 0:00:22.9]} 30. Qe2 {[%clk 0:00:10.6]} 30... Qe4
{[%clk 0:00:20.6]} 31. Qd3 {[%clk 0:00:06.1]} 31... e2 {[%clk 0:00:19.9]} 32.
Qxe4 {[%clk 0:00:05.3]} 32... Rxe4 {[%clk 0:00:20.4]} 0-1

[Event "Late-Titled-Tuesday-Blitz-March-12-2024"]
[Site "Chess.com"]
[Date "2024.03.12"]
[Round "2"]
[White "bipe137"]
[Black "SharathRk6"]
[Result "0-1"]
[WhiteElo "2548"]
[BlackElo "2375"]
[TimeControl "180+1"]
[EndTime "14:16:55 PDT"]
[Termination "SharathRk6 won by resignation"]

1. d4 {[%clk 0:03:00.9]} 1... Nf6 {[%clk 0:02:59.4]} 2. c4 {[%clk 0:03:00.8]}
2... e6 {[%clk 0:02:59.7]} 3. Nc3 {[%clk 0:03:01.4]} 3... Bb4 {[%clk 0:02:59.7]}
4. f3 {[%clk 0:03:02]} 4... c5 {[%clk 0:02:58.4]} 5. d5 {[%clk 0:03:01.9]} 5...
b5 {[%clk 0:02:58]} 6. e4 {[%clk 0:03:02.2]} 6... O-O {[%clk 0:02:57.7]} 7. e5
{[%clk 0:03:01.5]} 7... exd5 {[%clk 0:02:50.8]} 8. exf6 {[%clk 0:03:01.4]} 8...
d4 {[%clk 0:02:51]} 9. a3 {[%clk 0:03:01.2]} 9... Ba5 {[%clk 0:02:49.5]} 10. b4
{[%clk 0:03:01]} 10... cxb4 {[%clk 0:02:46.9]} 11. Nd5 {[%clk 0:02:55.8]} 11...
bxa3+ {[%clk 0:02:42.2]} 12. Kf2 {[%clk 0:02:52.7]} 12... Re8 {[%clk 0:02:21.5]}
13. Bg5 {[%clk 0:02:47]} 13... g6 {[%clk 0:01:58.8]} 14. Qxd4 {[%clk 0:02:34.4]}
14... Nc6 {[%clk 0:01:55.7]} 15. Qh4 {[%clk 0:02:31]} 15... Bb6+ {[%clk
0:01:50.1]} 16. Kg3 {[%clk 0:02:27]} 16... Re5 {[%clk 0:01:41.2]} 17. Ne7+
{[%clk 0:02:20.6]} 17... Nxe7 {[%clk 0:01:37.5]} 18. fxe7 {[%clk 0:02:20.9]}
18... Qe8 {[%clk 0:01:32.9]} 19. Bf6 {[%clk 0:02:19.7]} 19... Rh5 {[%clk
0:01:23.7]} 20. Qe4 {[%clk 0:02:13.1]} 20... Bc7+ {[%clk 0:01:17.6]} 21. f4
{[%clk 0:02:04.1]} 21... Rb8 {[%clk 0:00:58.2]} 22. Be2 {[%clk 0:01:50.3]} 22...
Bb7 {[%clk 0:00:51.3]} 23. Qd4 {[%clk 0:01:48.4]} 23... Rf5 {[%clk 0:00:45.6]}
24. Nh3 {[%clk 0:01:43.4]} 24... b4 {[%clk 0:00:34.6]} 25. Bg4 {[%clk
0:01:34.2]} 25... Bb6 {[%clk 0:00:34.5]} 26. Bxf5 {[%clk 0:01:17.9]} 26... Bxd4
{[%clk 0:00:33.4]} 27. Bxd4 {[%clk 0:01:18.8]} 27... gxf5 {[%clk 0:00:33.2]} 28.
Bf6 {[%clk 0:01:18.3]} 28... Be4 {[%clk 0:00:32.3]} 29. Nf2 {[%clk 0:01:14.7]}
29... Rb6 {[%clk 0:00:31.7]} 30. Nxe4 {[%clk 0:01:13.7]} 30... fxe4 {[%clk
0:00:32]} 31. Bh4 {[%clk 0:01:13]} 31... Re6 {[%clk 0:00:32.1]} 32. Rhb1 {[%clk
0:01:10.1]} 32... a5 {[%clk 0:00:30.2]} 33. Rd1 {[%clk 0:01:08.6]} 33... Rxe7
{[%clk 0:00:30.2]} 34. Rd5 {[%clk 0:01:09.3]} 34... e3 {[%clk 0:00:23.7]} 35.
Bf6 {[%clk 0:01:08.1]} 35... Re6 {[%clk 0:00:20.6]} 36. Rg5+ {[%clk 0:01:01.7]}
36... Kf8 {[%clk 0:00:21]} 37. Bg7+ {[%clk 0:01:02.3]} 37... Ke7 {[%clk
0:00:21.4]} 38. Bd4 {[%clk 0:01:02.1]} 38... Rg6 {[%clk 0:00:20.2]} 39. Re1
{[%clk 0:01:01]} 39... Rxg5+ {[%clk 0:00:20.2]} 40. fxg5 {[%clk 0:00:52.7]}
40... Qb8+ {[%clk 0:00:20.8]} 41. Kf3 {[%clk 0:00:50.8]} 41... Qb7+ {[%clk
0:00:20]} 42. Kxe3 {[%clk 0:00:51.1]} 42... Qxg2 {[%clk 0:00:20.2]} 43. Bb6
{[%clk 0:00:46.1]} 43... Kd6 {[%clk 0:00:20.1]} 44. Bxa5 {[%clk 0:00:43.8]}
44... Qb2 {[%clk 0:00:20]} 45. Rd1+ {[%clk 0:00:42.9]} 45... Kc6 {[%clk
0:00:20]} 46. Rd2 {[%clk 0:00:41.2]} 46... Qc3+ {[%clk 0:00:19.6]} 47. Rd3
{[%clk 0:00:41.3]} 47... Qxc4 {[%clk 0:00:20]} 48. Rd4 {[%clk 0:00:41.8]} 48...
Qc1+ {[%clk 0:00:20.1]} 49. Ke4 {[%clk 0:00:41.9]} 49... b3 {[%clk 0:00:20.6]}
0-1

[Event "Late-Titled-Tuesday-Blitz-March-12-2024"]
[Site "Chess.com"]
[Date "2024.03.12"]
[Round "2"]
[White "Fandorine"]
[Black "Alexei_Gubajdullin"]
[Result "1-0"]
[WhiteElo "2952"]
[BlackElo "2639"]
[TimeControl "180+1"]
[EndTime "14:16:56 PDT"]
[Termination "Fandorine won on time"]

1. d4 {[%clk 0:03:00.9]} 1... Nf6 {[%clk 0:02:11]} 2. c4 {[%clk 0:02:56.3]} 2...
g6 {[%clk 0:02:11.1]} 3. Nc3 {[%clk 0:02:56]} 3... Bg7 {[%clk 0:02:11.7]} 4. e4
{[%clk 0:02:56.3]} 4... O-O {[%clk 0:02:11.9]} 5. Be2 {[%clk 0:02:56.5]} 5... d6
{[%clk 0:02:12.4]} 6. Nf3 {[%clk 0:02:56.9]} 6... Na6 {[%clk 0:02:12.5]} 7. O-O
{[%clk 0:02:57.2]} 7... e5 {[%clk 0:02:12.5]} 8. Re1 {[%clk 0:02:57.4]} 8... c6
{[%clk 0:02:10]} 9. Be3 {[%clk 0:02:57.2]} 9... Ng4 {[%clk 0:02:09.5]} 10. Bg5
{[%clk 0:02:56.1]} 10... f6 {[%clk 0:02:08.9]} 11. Bh4 {[%clk 0:02:54.7]} 11...
g5 {[%clk 0:02:01]} 12. Bg3 {[%clk 0:02:55]} 12... h5 {[%clk 0:01:56.3]} 13. h4
{[%clk 0:02:52.8]} 13... gxh4 {[%clk 0:01:44.5]} 14. Bxh4 {[%clk 0:02:44.7]}
14... Qe8 {[%clk 0:01:42]} 15. Bg3 {[%clk 0:02:38.9]} 15... f5 {[%clk
0:01:38.2]} 16. exf5 {[%clk 0:02:35.8]} 16... Bxf5 {[%clk 0:01:38]} 17. c5
{[%clk 0:02:27.4]} 17... e4 {[%clk 0:01:15.5]} 18. cxd6 {[%clk 0:02:22]} 18...
e3 {[%clk 0:01:02.9]} 19. Bxa6 {[%clk 0:01:59]} 19... bxa6 {[%clk 0:00:55]} 20.
fxe3 {[%clk 0:01:59.2]} 20... Bh6 {[%clk 0:00:45.6]} 21. e4 {[%clk 0:01:47.1]}
21... Bh7 {[%clk 0:00:39.6]} 22. Qb3+ {[%clk 0:01:34]} 22... Kh8 {[%clk
0:00:39.2]} 23. Be5+ {[%clk 0:01:22.3]} 23... Nxe5 {[%clk 0:00:33.9]} 24. Nxe5
{[%clk 0:01:23.2]} 24... c5 {[%clk 0:00:21.6]} 25. d7 {[%clk 0:01:11.3]} 25...
Qe7 {[%clk 0:00:20.8]} 26. Nd5 {[%clk 0:01:11.9]} 26... Qd6 {[%clk 0:00:20.9]}
27. Qa3 {[%clk 0:00:37.3]} 27... Bxe4 {[%clk 0:00:11.8]} 28. Rxe4 {[%clk
0:00:36.8]} 28... Qxd5 {[%clk 0:00:12]} 29. Rae1 {[%clk 0:00:30.5]} 29... Rg8
{[%clk 0:00:10.4]} 30. Qf3 {[%clk 0:00:26.5]} 30... Rg7 {[%clk 0:00:01.8]} 31.
Qxh5 {[%clk 0:00:24.8]} 31... Kh7 {[%clk 0:00:01.3]} 32. Qf5+ {[%clk 0:00:22.1]}
1-0

[Event "Late-Titled-Tuesday-Blitz-March-12-2024"]
[Site "Chess.com"]
[Date "2024.03.12"]
[Round "2"]
[White "N_Mullodzhanov"]
[Black "chessamical"]
[Result "1-0"]
[WhiteElo "2519"]
[BlackElo "2215"]
[TimeControl "180+1"]
[EndTime "14:16:56 PDT"]
[Termination "N_Mullodzhanov won on time"]

1. e4 {[%clk 0:03:00.9]} 1... e6 {[%clk 0:02:58.2]} 2. d4 {[%clk 0:03:01]} 2...
d5 {[%clk 0:02:58.7]} 3. Nd2 {[%clk 0:03:00.9]} 3... c5 {[%clk 0:02:57.8]} 4.
Ngf3 {[%clk 0:03:00.7]} 4... cxd4 {[%clk 0:02:56]} 5. Nxd4 {[%clk 0:03:00.8]}
5... Nc6 {[%clk 0:02:54.5]} 6. Bb5 {[%clk 0:03:00]} 6... Bd7 {[%clk 0:02:54.3]}
7. Bxc6 {[%clk 0:02:58.7]} 7... bxc6 {[%clk 0:02:55.2]} 8. O-O {[%clk
0:02:58.7]} 8... Ne7 {[%clk 0:02:50.3]} 9. Re1 {[%clk 0:02:56.8]} 9... Ng6
{[%clk 0:02:48.5]} 10. e5 {[%clk 0:02:50.3]} 10... Qb6 {[%clk 0:02:39.8]} 11. c3
{[%clk 0:02:40.7]} 11... a5 {[%clk 0:02:28.8]} 12. a4 {[%clk 0:02:37]} 12... c5
{[%clk 0:02:07.2]} 13. Nc2 {[%clk 0:02:17]} 13... Qc7 {[%clk 0:01:58]} 14. Nf3
{[%clk 0:02:13.6]} 14... Be7 {[%clk 0:01:52.4]} 15. g3 {[%clk 0:02:13.2]} 15...
Bd8 {[%clk 0:01:41.1]} 16. h4 {[%clk 0:02:07.6]} 16... Ne7 {[%clk 0:01:30.7]}
17. Kg2 {[%clk 0:02:00.1]} 17... h6 {[%clk 0:01:19.3]} 18. Qd3 {[%clk
0:01:40.4]} 18... Bc6 {[%clk 0:00:55.4]} 19. Be3 {[%clk 0:01:36.6]} 19... Bb7
{[%clk 0:00:41.3]} 20. b4 {[%clk 0:01:21]} 20... d4 {[%clk 0:00:32.4]} 21. cxd4
{[%clk 0:01:15.8]} 21... Qc6 {[%clk 0:00:18.1]} 22. Qb5 {[%clk 0:00:41.2]} 22...
cxd4 {[%clk 0:00:12.4]} 23. Nxd4 {[%clk 0:00:37.9]} 23... Qxb5 {[%clk
0:00:10.8]} 24. Nxb5 {[%clk 0:00:38.8]} 24... O-O {[%clk 0:00:05.8]} 25. Bc5
{[%clk 0:00:34.4]} 25... axb4 {[%clk 0:00:03.9]} 26. Bxb4 {[%clk 0:00:34.5]}
26... Bd5 {[%clk 0:00:02]} 27. Rec1 {[%clk 0:00:32.2]} 27... Re8 {[%clk
0:00:01.6]} 28. Nd6 {[%clk 0:00:27.7]} 28... Rf8 {[%clk 0:00:01.2]} 29. a5
{[%clk 0:00:28.4]} 29... Nc6 {[%clk 0:00:01]} 30. Bc5 {[%clk 0:00:13.9]} 1-0

[Event "Late-Titled-Tuesday-Blitz-March-12-2024"]
[Site "Chess.com"]
[Date "2024.03.12"]
[Round "2"]
[White "FairChess_on_YouTube"]
[Black "ChessSwole"]
[Result "1-0"]
[WhiteElo "3111"]
[BlackElo "2713"]
[TimeControl "180+1"]
[EndTime "14:16:57 PDT"]
[Termination "FairChess_on_YouTube won on time"]

1. d4 {[%clk 0:03:00.9]} 1... d5 {[%clk 0:02:58.4]} 2. c4 {[%clk 0:03:01.1]}
2... c6 {[%clk 0:02:58.5]} 3. Nf3 {[%clk 0:03:01.2]} 3... Nf6 {[%clk 0:02:58.4]}
4. Qc2 {[%clk 0:03:01]} 4... g6 {[%clk 0:02:57.7]} 5. cxd5 {[%clk 0:03:00.7]}
5... cxd5 {[%clk 0:02:57.5]} 6. Bf4 {[%clk 0:03:00.6]} 6... Nc6 {[%clk
0:02:56.8]} 7. Nc3 {[%clk 0:02:59.7]} 7... Bg7 {[%clk 0:02:52]} 8. e3 {[%clk
0:02:59.8]} 8... O-O {[%clk 0:02:50.9]} 9. h3 {[%clk 0:03:00.1]} 9... Bf5 {[%clk
0:02:50.2]} 10. Qb3 {[%clk 0:03:00.3]} 10... Na5 {[%clk 0:02:49.9]} 11. Qb4
{[%clk 0:02:59.6]} 11... Rc8 {[%clk 0:02:38]} 12. Be2 {[%clk 0:02:58.7]} 12...
Ne4 {[%clk 0:02:34.4]} 13. O-O {[%clk 0:02:53.5]} 13... Nxc3 {[%clk 0:02:33.3]}
14. bxc3 {[%clk 0:02:54.4]} 14... b6 {[%clk 0:02:29.9]} 15. Ba6 {[%clk
0:02:49.3]} 15... Ra8 {[%clk 0:02:20.7]} 16. Rfc1 {[%clk 0:02:44.6]} 16... Bc8
{[%clk 0:01:43.8]} 17. Bd3 {[%clk 0:02:35.1]} 17... Bb7 {[%clk 0:01:41.2]} 18.
h4 {[%clk 0:02:34.9]} 18... Rc8 {[%clk 0:01:37.9]} 19. h5 {[%clk 0:02:35]} 19...
Nc4 {[%clk 0:01:35.1]} 20. a4 {[%clk 0:02:31.8]} 20... Qd7 {[%clk 0:01:23.5]}
21. h6 {[%clk 0:02:17.4]} 21... Bf6 {[%clk 0:01:19.5]} 22. Ne5 {[%clk
0:02:16.1]} 22... Qe6 {[%clk 0:01:11.5]} 23. Nxc4 {[%clk 0:02:11.8]} 23... dxc4
{[%clk 0:01:12.4]} 24. Bf1 {[%clk 0:02:12.1]} 24... Bd5 {[%clk 0:00:57]} 25. a5
{[%clk 0:02:11.7]} 25... Rc6 {[%clk 0:00:42.6]} 26. axb6 {[%clk 0:02:10.8]}
26... axb6 {[%clk 0:00:43.5]} 27. Ra7 {[%clk 0:02:08.8]} 27... Qf5 {[%clk
0:00:37]} 28. Rxe7 {[%clk 0:02:05.4]} 28... Bxe7 {[%clk 0:00:35.3]} 29. Qxe7
{[%clk 0:02:06.3]} 29... Re6 {[%clk 0:00:27.3]} 30. Qc7 {[%clk 0:02:04]} 30...
g5 {[%clk 0:00:23.1]} 31. Bd6 {[%clk 0:01:59.9]} 31... Rfe8 {[%clk 0:00:20.4]}
32. Be5 {[%clk 0:01:55.7]} 32... Rxh6 {[%clk 0:00:19.6]} 33. Ra1 {[%clk
0:01:55.9]} 33... Rhe6 {[%clk 0:00:17.2]} 34. Bxc4 {[%clk 0:01:34.2]} 34... Bxc4
{[%clk 0:00:17]} 35. Qxc4 {[%clk 0:01:35.1]} 35... g4 {[%clk 0:00:13.3]} 36. Bf4
{[%clk 0:01:28.7]} 36... h5 {[%clk 0:00:12]} 37. g3 {[%clk 0:01:26.9]} 37... b5
{[%clk 0:00:10.2]} 38. Qc7 {[%clk 0:01:00]} 38... Qd3 {[%clk 0:00:08]} 39. Qc5
{[%clk 0:00:57.3]} 39... Qg6 {[%clk 0:00:07.3]} 40. d5 {[%clk 0:00:54.2]} 40...
Re4 {[%clk 0:00:05.6]} 41. d6 {[%clk 0:00:54]} 41... Qe6 {[%clk 0:00:04.3]} 42.
Qg5+ {[%clk 0:00:52.2]} 42... Kh8 {[%clk 0:00:03.8]} 43. Qxh5+ {[%clk
0:00:51.4]} 43... Kg8 {[%clk 0:00:04.5]} 44. Qg5+ {[%clk 0:00:51.8]} 44... Qg6
{[%clk 0:00:02.6]} 45. d7 {[%clk 0:00:51.4]} 1-0

[Event "Late-Titled-Tuesday-Blitz-March-12-2024"]
[Site "Chess.com"]
[Date "2024.03.12"]
[Round "2"]
[White "Oleksandr_Bortnyk"]
[Black "LikeWater"]
[Result "1-0"]
[WhiteElo "3015"]
[BlackElo "2681"]
[TimeControl "180+1"]
[EndTime "14:16:59 PDT"]
[Termination "Oleksandr_Bortnyk won by checkmate"]

1. e4 {[%clk 0:03:00.9]} 1... c5 {[%clk 0:02:58.2]} 2. c3 {[%clk 0:03:00.6]}
2... e6 {[%clk 0:02:55.6]} 3. d4 {[%clk 0:02:57.9]} 3... d5 {[%clk 0:02:56.1]}
4. exd5 {[%clk 0:02:58]} 4... exd5 {[%clk 0:02:55.3]} 5. Be3 {[%clk 0:02:58.1]}
5... c4 {[%clk 0:02:53.6]} 6. b3 {[%clk 0:02:58.1]} 6... cxb3 {[%clk 0:02:53.5]}
7. axb3 {[%clk 0:02:59]} 7... Nf6 {[%clk 0:02:53.6]} 8. Bd3 {[%clk 0:02:59]}
8... Nc6 {[%clk 0:02:49.7]} 9. h3 {[%clk 0:02:59.4]} 9... Be7 {[%clk 0:02:49]}
10. Qf3 {[%clk 0:02:59.1]} 10... O-O {[%clk 0:02:46.2]} 11. Ne2 {[%clk
0:02:59.2]} 11... Re8 {[%clk 0:02:37.6]} 12. O-O {[%clk 0:02:58.4]} 12... h6
{[%clk 0:02:33.4]} 13. Nd2 {[%clk 0:02:54.3]} 13... Bd6 {[%clk 0:02:24.7]} 14.
Nf4 {[%clk 0:02:53]} 14... Bc7 {[%clk 0:02:20]} 15. Rfe1 {[%clk 0:02:51.5]}
15... Qd6 {[%clk 0:02:10.6]} 16. b4 {[%clk 0:02:32.8]} 16... g5 {[%clk 0:01:47]}
17. Ne2 {[%clk 0:02:12.6]} 17... g4 {[%clk 0:01:27]} 18. Qf4 {[%clk 0:02:04.4]}
18... gxh3 {[%clk 0:01:17.3]} 19. Qxd6 {[%clk 0:01:54.5]} 19... Bxd6 {[%clk
0:01:16.8]} 20. gxh3 {[%clk 0:01:44.1]} 20... Bxh3 {[%clk 0:01:09.8]} 21. b5
{[%clk 0:01:43.8]} 21... Ne7 {[%clk 0:01:06.7]} 22. Bxh6 {[%clk 0:01:42.8]}
22... Nf5 {[%clk 0:00:59]} 23. Bg5 {[%clk 0:01:41]} 23... Ne4 {[%clk 0:00:57.7]}
24. Bxe4 {[%clk 0:01:33]} 24... dxe4 {[%clk 0:00:58.6]} 25. Nf4 {[%clk
0:01:33.8]} 25... Bxf4 {[%clk 0:00:44.2]} 26. Bxf4 {[%clk 0:01:34.7]} 26... Re6
{[%clk 0:00:36.9]} 27. Rxe4 {[%clk 0:01:27.4]} 27... Rg6+ {[%clk 0:00:35.9]} 28.
Kh2 {[%clk 0:01:27.5]} 28... Bg2 {[%clk 0:00:33.6]} 29. Re5 {[%clk 0:01:27.1]}
29... Kg7 {[%clk 0:00:32]} 30. Bg3 {[%clk 0:01:15.3]} 30... Nh4 {[%clk
0:00:15.3]} 31. Rh5 {[%clk 0:00:45.3]} 31... Nf3+ {[%clk 0:00:15.5]} 32. Kxg2
{[%clk 0:00:45.4]} 32... Nxd2 {[%clk 0:00:16.2]} 33. Re1 {[%clk 0:00:37.8]}
33... Rc8 {[%clk 0:00:15.6]} 34. Re7 {[%clk 0:00:36.6]} 34... Rxc3 {[%clk
0:00:13.2]} 35. Rf5 {[%clk 0:00:36.8]} 35... Kg8 {[%clk 0:00:08.2]} 36. Rexf7
{[%clk 0:00:29.3]} 36... Ne4 {[%clk 0:00:07.9]} 37. Rf8+ {[%clk 0:00:29.7]}
37... Kg7 {[%clk 0:00:06.4]} 38. R5f7+ {[%clk 0:00:29.8]} 38... Kh6 {[%clk
0:00:06.9]} 39. Rh8+ {[%clk 0:00:30.7]} 39... Kg5 {[%clk 0:00:07.4]} 40. f4+
{[%clk 0:00:31.6]} 40... Kg4 {[%clk 0:00:07.2]} 41. Rh4# {[%clk 0:00:32.5]} 1-0